fUSD/lending_fUSD_20240329
["ID","MTS","AMOUNT","RATE_DAILY","PERIOD"]
[320950417,1711721438195,-201.5,0.00027247,10]
[320950419,1711721438205,-157.24,0.00027302,2]
[320950420,1711721438214,-157.24,0.00027378,2]
[320950422,1711721438224,-196.26,0.00027387,2]
[320950425,1711721438233,-79554.45,0.00027397,2]
[320950427,1711721438243,-15717.22,0.00027397,2]
[320950429,1711721438252,-250.0,0.00027397,2]
[320950430,1711721438261,-157.24,0.00027455,2]
[320950433,1711721438271,-168.96,0.00027488,2]
[320950434,1711721438280,-187.79242825,0.000275,2]
[320950436,1711721438290,-157.24,0.00027532,2]
[320950439,1711721438301,-157.24,0.00027609,2]
[320950441,1711721438310,-167.0,0.00027636,2]
[320950443,1711721438319,-157.24,0.00027686,2]
[320950445,1711721438328,-200.0,0.00027762,2]
[320950447,1711721438338,-157.24,0.00027762,2]
[320950448,1711721438347,-157.24,0.00027839,2]
[320950450,1711721438356,-362.77525967,0.00027874,2]
[320950452,1711721438366,-157.24,0.00027916,2]
[320950455,1711721438376,-1000.0,0.00028033,2]
[320950457,1711721438385,-420.0,0.00028268,2]
[320950458,1711721438394,-164.08,0.00028331,2]
[320950460,1711721438403,-1258.83,0.00028344,2]
[320950462,1711721438412,-167.0,0.00028492,2]
[320950464,1711721438421,-6593.67,0.00028513,2]
[320950466,1711721438433,-210.0,0.00028736,2]
[320950468,1711721438443,-559.62274197,0.00029,2]
[320950470,1711721438452,-167.0,0.00029347,2]
[320950472,1711721438461,-200.0,0.0002939,2]
[320950475,1711721438471,-164.08,0.00029485,2]
[320950476,1711721438480,-440.00922096,0.000295,3]
[320950478,1711721438489,-735.0,0.000298,2]
[320950479,1711721438499,-2161.55614832,0.00029898,2]
[320950480,1711721438509,-305.72519554,0.00029898,2]
[320950481,1711721438518,-209.70350677,0.00029898,2]
[320950482,1711721438528,-165.14484683,0.00029898,2]
[320950483,1711721438537,-155.93753618,0.00029898,2]
[320950484,1711721438547,-279.14746666,0.00029898,2]
[320950485,1711721438556,-405.01553165,0.00029898,2]
[320950486,1711721438565,-211.58984479,0.00029899,2]
[320950487,1711721438574,-173.42568555,0.00029899,2]
[320950488,1711721438584,-200.52879827,0.00029899,2]
[320950489,1711721438593,-155.94263344,0.000299,2]
[320950490,1711721438602,-462.0,0.000299,2]
[320950491,1711721438611,-826.18475662,0.000299,2]
[320950492,1711721438620,-1400.78026179,0.000299,2]
[320950493,1711721438630,-168.96,0.00029987,2]
[320950494,1711721438640,-2634.98330825,0.0002999,2]
[320950495,1711721438649,-23510.85096421,0.0002999,2]
[320950496,1711721438661,-246.9966118,0.0002999,2]
[320950497,1711721438675,-196.26,0.0002999,2]
[320950498,1711721438685,-158667.46497093,0.0003,2]
[320950499,1711721438696,-8229.20543286,0.0003,4]
[320950500,1711721438705,-155.0,0.0003,2]
[320950501,1711721438715,-261.54536179,0.0003,4]
[320950502,1711721438913,-155.72508059,0.0003,4]
[320950503,1711721438930,-155.26045736,0.0003,4]
[320950504,1711721438940,-1620.27670946,0.0003,4]
[320950505,1711721438949,-68721.31449623,0.0003,4]
[320950506,1711721438958,-363.22524146,0.0003005,2]
[320950507,1711721438968,-268.16837909,0.0003005,2]
[320950508,1711721438979,-8193.20933234,0.00030051,2]
[320950509,1711721438989,-196.26,0.00030072,2]
[320950510,1711721438998,-35594.96289214,0.00030082,2]
[320950511,1711721439008,-150.0,0.00030137,2]
[320950512,1711721439018,-167.0,0.00030203,2]
[320950513,1711721439028,-587.0,0.00030589,2]
[320950514,1711721439037,-1258.83,0.00030607,2]
[320950515,1711721439046,-164.08,0.00030638,2]
[320950516,1711721439056,-150.0,0.0003093,2]
[320950517,1711721439065,-1000.0,0.00031148,2]
[320950518,1711721439075,-6593.67,0.00031253,2]
[320950519,1711721439085,-180.0,0.00031342,2]
[320950520,1711721439094,-293.0,0.0003161,3]
[320950521,1711721439103,-190.83,0.00031644,2]
[320950522,1711721439112,-150.0,0.00031723,2]
[320950523,1711721439121,-164.08,0.00031792,2]
[320950524,1711721439130,-150.0,0.0003192,10]
[320950525,1711721439140,-150.0,0.00031985,10]
[320950526,1711721439149,-150.0,0.00031997,10]
[320950527,1711721439158,-170.70324215,0.00032077,2]
[320950528,1711721439167,-168.96,0.00032486,2]
[320950529,1711721439179,-826.18475658,0.00032514,2]
[320950530,1711721439188,-150.0,0.00032516,2]
[320950531,1711721439198,-469.89,0.00032548,15]
[320950532,1711721439207,-200.0,0.00032656,2]
[320950533,1711721439216,-3521.09585538,0.000328,2]
[320950534,1711721439226,-1258.83,0.00032871,2]
[320950535,1711721439235,-10000.0,0.00032877,2]
[320950536,1711721439245,-47662.21,0.00032877,2]
[320950537,1711721439255,-500.0,0.000329,12]
[320950538,1711721439264,-164.08,0.00032945,2]
[320950539,1711721439274,-14996.00183441,0.00033,2]
[320950540,1711721439285,-24259.62119201,0.00033,2]
[320950541,1711721439294,-970.30515172,0.00033,2]
[320950542,1711721439304,-250.0,0.00033,3]
[320950543,1711721439313,-195.0,0.00033099,3]
[320950544,1711721439323,-8193.20933234,0.00033132,2]
[320950545,1711721439332,-35594.96289214,0.00033193,2]
[320950546,1711721439342,-150.0,0.00033309,2]
[320950547,1711721439351,-1133.71679716,0.000335,2]
[320950548,1711721439361,-1333.33333333,0.0003385,2]
[320950549,1711721439370,-150.0,0.00034102,2]
[320950550,1711721439379,-1000.0,0.00034263,2]
[320950551,1711721439388,-333.33333333,0.00034359,2]
[320950552,1711721439398,-411.0,0.00034771,3]
[320950553,1711721439408,-9039.47106703,0.000348,4]
[320950554,1711721439417,-150.0,0.00034895,2]
[320950556,1711721439428,-168.96,0.00034984,2]
[320950557,1711721439438,-301.35448823,0.00035,2]
[320950558,1711721439448,-300.0,0.00035,3]
[320950559,1711721439457,-1279.15951777,0.00035,4]
[320950560,1711721439467,-19398.779952,0.00035,4]
[320950561,1711721439476,-826.18475658,0.00035129,2]
[320950563,1711721439485,-1258.83,0.00035135,2]
[320950564,1711721439496,-469.89,0.00035288,15]
[320950565,1711721439506,-150.0,0.00035688,2]
[320950566,1711721439515,-200.0,0.00035922,2]
[320950567,1711721439525,-8193.20933234,0.00036212,2]
[320950568,1711721439534,-196.26,0.00036293,2]
[320950569,1711721439543,-35594.96289214,0.00036303,2]
[320950570,1711721439552,-150.0,0.00036482,2]
[320950571,1711721439562,-991.38,0.00036575,2]
[320950572,1711721439571,-151.7610318,0.000369,2]
[320950573,1711721439580,-1081.49618557,0.000369,9]
[320950574,1711721439590,-1000.0,0.000369,13]
[320950575,1711721439599,-470.21701928,0.000369,4]
[320950577,1711721439609,-196.26,0.0003699,2]
[320950579,1711721439618,-5859.86257298,0.00036997,2]
[320950580,1711721439627,-152.20130312,0.00037,2]
[320950582,1711721439636,-335304.0,0.00037,2]
[320950584,1711721439646,-350.0,0.00037,3]
[320950585,1711721439655,-170.70324215,0.00037199,2]
[320950587,1711721439665,-3392.17,0.00037253,2]
[320950589,1711721439677,-150.0,0.00037275,2]
[320950590,1711721439686,-1000.0,0.00037378,2]
[320950592,1711721439696,-1258.83,0.00037399,2]
[320950594,1711721439705,-168.96,0.00037483,2]
[320950596,1711721439714,-196.26,0.00037508,2]
[320950598,1711721439724,-1768.82,0.00037517,2]
[320950600,1711721439735,-160.76,0.00037585,2]
[320950602,1711721439744,-4079.38849392,0.0003759,2]
[320950604,1711721439753,-826.18475658,0.00037743,2]
[320950606,1711721439762,-163.53150566,0.000378,2]
[320950608,1711721439771,-871.20816465,0.0003789,10]
[320950609,1711721439781,-469.89,0.00038027,15]
[320950611,1711721439790,-150.0,0.00038068,2]
[320950613,1711721439800,-165.0101441,0.0003817,4]
[320950614,1711721439809,-576.0,0.00038248,3]
[320950615,1711721439822,-186.66,0.00038356,2]
[320950616,1711721439832,-169.35,0.00038499,2]
[320950617,1711721439842,-155.3739696,0.00038597,2]
[320950618,1711721439852,-179.05886858,0.00038597,2]
[320950619,1711721439861,-332.05147299,0.000387,2]
[320950620,1711721439870,-1192.38805554,0.00038765,2]
[320950621,1711721439880,-150.0,0.00038861,2]
[320950622,1711721439889,-300.31888725,0.0003888,2]
[320950623,1711721439899,-888.82105059,0.000389,30]
[320950624,1711721439908,-1000.0,0.00038904,120]
[320950625,1711721439918,-147004.03823964,0.0003897,2]
[320950626,1711721439928,-400.0,0.00039,3]
[320950627,1711721439938,-151.76103172,0.00039168,3]
[320950628,1711721439947,-200.0,0.00039187,2]
[320950629,1711721439956,-1081.49618554,0.00039264,12]
[320950630,1711721439966,-8193.20933234,0.00039293,2]
[320950631,1711721439975,-196.26,0.00039404,2]
[320950632,1711721439984,-35594.96289214,0.00039414,2]
[320950633,1711721439993,-150.0,0.00039654,2]
[320950634,1711721440002,-1258.83,0.00039663,2]
[320950635,1711721440011,-102543.61874035,0.0003999,2]
[320950636,1711721440021,-477.53316459,0.0004,4]
[320950637,1711721440030,-62057.21538403,0.0004,2]
[320950638,1711721440039,-234.01443,0.0004,6]
[320950639,1711721440048,-14475.8654963,0.0004,2]
[320950640,1711721440057,-1991.27586048,0.0004,2]
[320950641,1711721440066,-331.87749171,0.0004,30]
[320950642,1711721440075,-441.01478568,0.0004,15]
[320950643,1711721440084,-826.18475658,0.00040357,2]
[320950644,1711721440094,-150.0,0.00040447,2]
[320950645,1711721440103,-469.89,0.00040767,15]
[320950646,1711721440112,-246.9966118,0.00041086,2]
[320950647,1711721440121,-183.0,0.00041096,2]
[320950648,1711721440130,-1500.0,0.00041096,120]
[320950649,1711721440140,-200.15597255,0.00041204,13]
[320950650,1711721440149,-150.0,0.0004124,2]
[320950651,1711721440159,-151.76103172,0.00041437,12]
[320950652,1711721440168,-166.11,0.00041574,2]
[320950653,1711721440180,-1081.49618554,0.00041627,15]
[320950654,1711721440189,-1600.0,0.000417,15]
[320950655,1711721440197,-196.26,0.0004179,2]
[320950656,1711721440206,-2100.0,0.000418,15]
[320950657,1711721440216,-2600.0,0.000419,15]
[320950658,1711721440225,-1258.83,0.00041927,2]
[320950660,1711721440234,-92940.0,0.00042,30]
[320950661,1711721440244,-468.36693475,0.00042,2]
[320950663,1711721440253,-468.36693475,0.00042,2]
[320950665,1711721440262,-468.36693475,0.00042,2]
[320950666,1711721440272,-468.36693475,0.00042,2]
[320950668,1711721440281,-468.36693475,0.00042,2]
[320950670,1711721440290,-468.36693475,0.00042,2]
[320950671,1711721440299,-468.36693475,0.00042,2]
[320950672,1711721440308,-468.36693475,0.00042,2]
[320950673,1711721440317,-468.36693475,0.00042,2]
[320950674,1711721440326,-468.36693475,0.00042,2]
[320950675,1711721440335,-468.36693475,0.00042,2]
[320950676,1711721440344,-468.36693475,0.00042,2]
[320950677,1711721440354,-468.36693475,0.00042,2]
[320950678,1711721440363,-468.36693475,0.00042,2]
[320950679,1711721440372,-468.36693475,0.00042,2]
[320950680,1711721440382,-468.36693475,0.00042,2]
[320950681,1711721440391,-468.36693475,0.00042,2]
[320950682,1711721440401,-468.36693475,0.00042,2]
[320950683,1711721440410,-468.36693475,0.00042,2]
[320950684,1711721440419,-468.36693475,0.00042,2]
[320950685,1711721440430,-468.36693475,0.00042,2]
[320950686,1711721440440,-468.36693475,0.00042,2]
[320950687,1711721440450,-468.36693475,0.00042,2]
[320950688,1711721440459,-468.36693475,0.00042,2]
[320950689,1711721440468,-468.36693475,0.00042,2]
[320950690,1711721440478,-468.36693475,0.00042,2]
[320950691,1711721440487,-468.36693475,0.00042,2]
[320950692,1711721440496,-468.36693475,0.00042,2]
[320950693,1711721440505,-468.36693475,0.00042,2]
[320950694,1711721440515,-468.36693475,0.00042,2]
[320950695,1711721440524,-468.36693475,0.00042,2]
[320950696,1711721440534,-468.36693475,0.00042,2]
[320950697,1711721440543,-468.36693475,0.00042,2]
[320950698,1711721440552,-468.36693475,0.00042,2]
[320950699,1711721440561,-468.36693475,0.00042,2]
[320950700,1711721440571,-468.36693475,0.00042,2]
[320950701,1711721440581,-468.36693475,0.00042,2]
[320950702,1711721440590,-468.36693475,0.00042,2]
[320950703,1711721440600,-468.36693475,0.00042,2]
[320950704,1711721440609,-468.36693475,0.00042,2]
[320950705,1711721440619,-468.36693475,0.00042,2]
[320950706,1711721440628,-468.36693475,0.00042,2]
[320950707,1711721440637,-468.36693475,0.00042,2]
[320950708,1711721440647,-468.36693475,0.00042,2]
[320950709,1711721440656,-468.36693475,0.00042,2]
[320950710,1711721440665,-468.36693475,0.00042,2]
[320950711,1711721440676,-468.36693475,0.00042,2]
[320950712,1711721440685,-468.36693475,0.00042,2]
[320950713,1711721440694,-468.36693475,0.00042,2]
[320950714,1711721440703,-468.36693475,0.00042,2]
[320950715,1711721440713,-711.26067501,0.00042,2]
[320950716,1711721440727,-711.26067501,0.00042,2]
[320950717,1711721440736,-711.26067501,0.00042,2]
[320950718,1711721440745,-711.26067501,0.00042,2]
[320950719,1711721440754,-711.26067501,0.00042,2]
[320950720,1711721440764,-711.26067501,0.00042,2]
[320950721,1711721440773,-711.26067501,0.00042,2]
[320950722,1711721440783,-711.26067501,0.00042,2]
[320950723,1711721440792,-711.26067501,0.00042,2]
[320950724,1711721440802,-711.26067501,0.00042,2]
[320950725,1711721440811,-711.26067501,0.00042,2]
[320950726,1711721440821,-711.26067501,0.00042,2]
[320950727,1711721440831,-711.26067501,0.00042,2]
[320950728,1711721440840,-711.26067501,0.00042,2]
[320950729,1711721440850,-711.26067501,0.00042,2]
[320950730,1711721440859,-711.26067501,0.00042,2]
[320950731,1711721440868,-711.26067501,0.00042,2]
[320950732,1711721440878,-711.26067501,0.00042,2]
[320950733,1711721440887,-711.26067501,0.00042,2]
[320950734,1711721440896,-711.26067501,0.00042,2]
[320950735,1711721440906,-711.26067501,0.00042,2]
[320950736,1711721440915,-711.26067501,0.00042,2]
[320950737,1711721440925,-711.26067501,0.00042,2]
[320950738,1711721440934,-711.26067501,0.00042,2]
[320950739,1711721440944,-711.26067501,0.00042,2]
[320950740,1711721440954,-711.26067501,0.00042,2]
[320950741,1711721440964,-711.26067501,0.00042,2]
[320950742,1711721440974,-711.26067501,0.00042,2]
[320950743,1711721440983,-711.26067501,0.00042,2]
[320950744,1711721440993,-711.26067501,0.00042,2]
[320950745,1711721441002,-711.26067501,0.00042,2]
[320950746,1711721441012,-711.26067501,0.00042,2]
[320950747,1711721441021,-711.26067501,0.00042,2]
[320950748,1711721441030,-711.26067501,0.00042,2]
[320950749,1711721441039,-711.26067501,0.00042,2]
[320950750,1711721441049,-711.26067501,0.00042,2]
[320950751,1711721441058,-711.26067501,0.00042,2]
[320950752,1711721441067,-711.26067501,0.00042,2]
[320950753,1711721441076,-711.26067501,0.00042,2]
[320950754,1711721441086,-711.26067501,0.00042,2]
[320950755,1711721441095,-711.26067501,0.00042,2]
[320950756,1711721441105,-711.26067501,0.00042,2]
[320950757,1711721441114,-711.26067501,0.00042,2]
[320950758,1711721441123,-711.26067501,0.00042,2]
[320950759,1711721441132,-711.26067501,0.00042,2]
[320950760,1711721441142,-711.26067501,0.00042,2]
[320950761,1711721441151,-711.26067501,0.00042,2]
[320950762,1711721441160,-711.26067501,0.00042,2]
[320950763,1711721441169,-711.26067501,0.00042,2]
[320950764,1711721441181,-711.26067501,0.00042,2]
[320950765,1711721441191,-711.26067501,0.00042,2]
[320950766,1711721441200,-711.26067501,0.00042,2]
[320950767,1711721441210,-711.26067501,0.00042,2]
[320950768,1711721441220,-711.26067501,0.00042,2]
[320950769,1711721441229,-711.26067501,0.00042,2]
[320950770,1711721441238,-711.26067501,0.00042,2]
[320950771,1711721441246,-711.26067501,0.00042,2]
[320950772,1711721441256,-711.26067501,0.00042,2]
[320950773,1711721441265,-711.26067501,0.00042,2]
[320950774,1711721441273,-711.26067501,0.00042,2]
[320950775,1711721441282,-711.26067501,0.00042,2]
[320950776,1711721441291,-711.26067501,0.00042,2]
[320950777,1711721441301,-711.26067501,0.00042,2]
[320950778,1711721441594,-711.26067501,0.00042,2]
[320950779,1711721441604,-711.26067501,0.00042,2]
[320950780,1711721441613,-711.26067501,0.00042,2]
[320950781,1711721441623,-711.26067501,0.00042,2]
[320950782,1711721441632,-711.26067501,0.00042,2]
[320950783,1711721441641,-711.26067501,0.00042,2]
[320950784,1711721441650,-711.26067501,0.00042,2]
[320950785,1711721441659,-711.26067501,0.00042,2]
[320950786,1711721441668,-711.26067501,0.00042,2]
[320950787,1711721441678,-711.26067501,0.00042,2]
[320950788,1711721441688,-711.26067501,0.00042,2]
[320950789,1711721441698,-711.26067501,0.00042,2]
[320950790,1711721441707,-711.26067501,0.00042,2]
[320950791,1711721441717,-711.26067501,0.00042,2]
[320950792,1711721441727,-711.26067501,0.00042,2]
[320950793,1711721441742,-711.26067501,0.00042,2]
[320950794,1711721441751,-711.26067501,0.00042,2]
[320950795,1711721441761,-711.26067501,0.00042,2]
[320950796,1711721441770,-711.26067501,0.00042,2]
[320950797,1711721441781,-711.26067501,0.00042,2]
[320950798,1711721441791,-711.26067501,0.00042,2]
[320950799,1711721441800,-711.26067501,0.00042,2]
[320950800,1711721441811,-711.26067501,0.00042,2]
[320950801,1711721441821,-711.26067501,0.00042,2]
[320950802,1711721441830,-711.26067501,0.00042,2]
[320950803,1711721441839,-711.26067501,0.00042,2]
[320950804,1711721441849,-711.26067501,0.00042,2]
[320950805,1711721441858,-711.26067501,0.00042,2]
[320950806,1711721441867,-711.26067501,0.00042,2]
[320950807,1711721441877,-711.26067501,0.00042,2]
[320950808,1711721441886,-150.0,0.00042033,2]
[320950809,1711721441895,-280.0,0.00042073,5]
[320950810,1711721441906,-599.3237648,0.00042104,35]
[320950811,1711721441915,-985.02777266,0.00042104,2]
[320950812,1711721441925,-167.25246737,0.00042184,4]
[320950813,1711721441934,-246.9966118,0.00042194,2]
[320950814,1711721441943,-196.26,0.00042194,2]
[320950815,1711721441953,-61671.89130303,0.00042204,2]
[320950816,1711721441963,-506.10391681,0.00042204,15]
[320950817,1711721441972,-4019.0357295,0.00042204,2]
[320950818,1711721441982,-213.35092235,0.00042204,2]
[320950819,1711721441991,-156.09764906,0.00042204,2]
[320950820,1711721442002,-479.24787887,0.00042204,2]
[320950821,1711721442011,-1968393.52750829,0.00042204,7]
[320950822,1711721442020,-5194.82908486,0.00042204,2]
[320950823,1711721442030,-1212.37263975,0.00042204,2]
[320950824,1711721442039,-17341.66668682,0.00042204,7]
[320950825,1711721442048,-37768.92996314,0.00042204,2]
[320950826,1711721442058,-1065.12026545,0.00042204,7]
[320950827,1711721442068,-379002.63472488,0.00042204,2]
[320950828,1711721442077,-66663.04707881,0.00042204,7]
[320950829,1711721442086,-510.12705489,0.00042204,7]
[320950830,1711721442095,-432528.10731921,0.00042204,2]
[320950831,1711721442105,-607.92,0.000423,7]
[320950832,1711721442114,-170.70324215,0.00042321,2]
[320950833,1711721442124,-712.10141446,0.00042321,2]
[320950834,1711721442133,-151.61706225,0.00042321,2]
[320950835,1711721442143,-2828.0,0.00042342,3]
[320950836,1711721442152,-8193.20933234,0.00042373,2]
[320950837,1711721442161,-150.0,0.0004239,60]
[320950838,1711721442171,-717.0,0.00042391,15]
[320950839,1711721442182,-393.0,0.00042391,15]
[320950840,1711721442191,-150.5,0.00042391,15]
[320950841,1711721442201,-211.5,0.00042401,15]
[320950842,1711721442210,-393.0,0.00042401,15]
[320950843,1711721442219,-717.0,0.00042401,15]
[320950844,1711721442229,-150.5,0.00042401,15]
[320950845,1711721442239,-150.5,0.00042411,15]
[320950846,1711721442248,-717.0,0.00042411,15]
[320950847,1711721442258,-393.0,0.00042411,15]
[320950848,1711721442267,-150.5,0.00042411,15]
[320950849,1711721442276,-353.13,0.000425,7]
[320950850,1711721442285,-394.73,0.000425,7]
[320950851,1711721442294,-35594.96289214,0.00042525,2]
[320950852,1711721442304,-171.5,0.00042638,15]
[320950853,1711721442313,-150.5,0.00042648,15]
[320950854,1711721442322,-1730.52960158,0.00042657,120]
[320950855,1711721442331,-150.0,0.00042826,2]
[320950856,1711721442340,-826.18475658,0.00042971,2]
[320950857,1711721442350,-362.06943131,0.00042998,4]
[320950858,1711721442359,-303.7994626,0.00042998,4]
[320950859,1711721442369,-155.30173036,0.00042998,4]
[320950860,1711721442379,-174.83255505,0.00042998,4]
[320950861,1711721442388,-266.1381731,0.00042998,4]
[320950862,1711721442397,-300.0,0.00042999,2]
[320950863,1711721442407,-300.0,0.00042999,2]
[320950864,1711721442417,-300.0,0.00042999,2]
[320950865,1711721442427,-300.0,0.00042999,2]
[320950866,1711721442437,-300.0,0.00042999,2]
[320950867,1711721442446,-300.0,0.00042999,2]
[320950868,1711721442456,-300.0,0.00042999,2]
[320950869,1711721442465,-300.0,0.00042999,2]
[320950870,1711721442475,-300.0,0.00042999,2]
[320950871,1711721442484,-300.0,0.00042999,2]
[320950872,1711721442494,-300.0,0.00042999,2]
[320950873,1711721442503,-162.02794297,0.00042999,2]
[320950874,1711721442512,-747.2966568,0.00043,44]
[320950875,1711721442522,-152.11743383,0.00043051,60]
[320950876,1711721442531,-607.92,0.000433,7]
[320950877,1711721442541,-161.65472527,0.0004339,60]
[320950879,1711721442551,-221.89451322,0.0004339,60]
[320950880,1711721442560,-150.0,0.0004339,60]
[320950881,1711721442569,-469.89,0.00043507,15]
[320950882,1711721442578,-353.13,0.000436,7]
[320950883,1711721442588,-394.73,0.000436,7]
[320950884,1711721442597,-150.0,0.00043619,2]
[320950885,1711721442606,-150.0,0.00043637,60]
[320950887,1711721442616,-151.76103172,0.00043705,20]
[320950888,1711721442625,-8284.62,0.00043836,2]
[320950889,1711721442635,-1081.49618554,0.00043991,18]
[320950891,1711721442644,-600.0,0.00044,45]
[320950892,1711721442654,-15981.35768253,0.00044,2]
[320950893,1711721442664,-841.0,0.00044,120]
[320950894,1711721442673,-150.0,0.00044051,60]
[320950896,1711721442683,-1258.83,0.00044191,2]
[320950897,1711721442693,-607.92,0.000443,7]
[320950898,1711721442702,-2455.72,0.00044319,30]
[320950899,1711721442712,-599.3237648,0.00044361,38]
[320950900,1711721442721,-150.0,0.0004439,60]
[320950901,1711721442731,-150.0,0.00044412,2]
[320950902,1711721442743,-353.13,0.000445,7]
[320950903,1711721442753,-394.73,0.000445,7]
[320950905,1711721442763,-5000.0,0.00044986,4]
[320950907,1711721442772,-327.85615466,0.00045,4]
[320950908,1711721442781,-2063.25140717,0.00045,30]
[320950909,1711721442790,-600.0,0.00045,46]
[320950911,1711721442799,-171.50848428,0.00045,7]
[320950912,1711721442809,-150.0,0.00045205,2]
[320950913,1711721442819,-190.83,0.00045205,2]
[320950914,1711721442828,-826.18475658,0.00045586,2]
[320950915,1711721442837,-35594.96289214,0.00045636,2]
[320950916,1711721442847,-151.76103172,0.00045974,29]
[320950917,1711721442857,-600.0,0.00046,47]
[320950918,1711721442866,-607.92,0.00046,7]
[320950919,1711721442876,-469.89,0.00046247,15]
[320950920,1711721442885,-394.73,0.000463,7]
[320950921,1711721442894,-1081.49618554,0.00046355,21]
[320950922,1711721442903,-353.13,0.000464,7]
[320950923,1711721442912,-1258.83,0.00046455,2]
[320950924,1711721442921,-211.786938,0.00046603,30]
[320950925,1711721442932,-189.72599,0.00046603,30]
[320950926,1711721442941,-692.493199,0.00046603,30]
[320950927,1711721442950,-161.997484,0.00046603,30]
[320950928,1711721442960,-161.997484,0.00046603,30]
[320950929,1711721442969,-599.3237648,0.00046618,41]
[320950930,1711721442979,-3200.0,0.00047,4]
[320950931,1711721442988,-1000.0,0.00047,2]
[320950932,1711721442997,-155.43068764,0.00047,4]
[320950933,1711721443007,-600.0,0.00047,48]
[320950934,1711721443017,-1000.0,0.000471,2]
[320950935,1711721443026,-802.02137441,0.00047108,4]
[320950936,1711721443036,-211.786935,0.00047185,30]
[320950937,1711721443046,-692.493199,0.00047185,30]
[320950938,1711721443055,-1000.0,0.000473,2]
[320950939,1711721443065,-394.73,0.000474,7]
[320950940,1711721443074,-607.92,0.000474,7]
[320950941,1711721443083,-1000.0,0.000475,2]
[320950942,1711721443092,-353.13,0.000475,7]
[320950943,1711721443101,-211.786935,0.00047768,30]
[320950944,1711721443111,-692.493199,0.00047768,30]
[320950945,1711721443120,-5859.86257298,0.00047807,2]
[320950946,1711721443130,-220000.0,0.0004781,120]
[320950947,1711721443139,-159.30357396,0.00047874,30]
[320950948,1711721443148,-158.30237148,0.00047879,30]
[320950949,1711721443158,-1021.0,0.000479,2]
[320950950,1711721443167,-1312.03833394,0.00047919,7]
[320950951,1711721443177,-146648.2785406,0.00047998,2]
[320950952,1711721443186,-155.0,0.00048,15]
[320950953,1711721443195,-10000.0,0.00048,14]
[320950954,1711721443204,-233.52222222,0.00048,120]
[320950955,1711721443213,-600.0,0.00048,49]
[320950956,1711721443222,-2000.0,0.000482,120]
[320950957,1711721443231,-826.18475658,0.000482,2]
[320950958,1711721443241,-539.0,0.0004822,30]
[320950959,1711721443250,-529.0,0.0004822,30]
[320950960,1711721443260,-552.0,0.0004822,30]
[320950962,1711721443269,-712.10141446,0.00048234,2]
[320950963,1711721443279,-151.76103172,0.00048242,37]
[320950965,1711721443289,-211.786935,0.0004835,30]
[320950966,1711721443298,-692.493199,0.0004835,30]
[320950967,1711721443308,-151.0,0.00048445,2]
[320950968,1711721443318,-3392.17,0.00048486,120]
[320950970,1711721443327,-539.0,0.00048494,30]
[320950971,1711721443337,-529.0,0.00048494,30]
[320950973,1711721443347,-552.0,0.00048494,30]
[320950975,1711721443357,-607.92,0.000485,7]
[320950976,1711721443366,-394.73,0.000486,7]
[320950978,1711721443375,-233.52222222,0.00048603,120]
[320950980,1711721443384,-156.89454055,0.0004863,30]
[320950982,1711721443394,-353.13,0.000487,7]
[320950984,1711721443403,-150.5,0.000487,120]
[320950986,1711721443412,-150.5,0.000487,120]
[320950989,1711721443422,-150.5,0.000487,120]